fUSD/lending_fUSD_20251201
["ID","MTS","AMOUNT","RATE_DAILY","PERIOD"]
[395233570,1764558642191,-150.0,0.00015288,2]
[395233571,1764558642200,-150.0,0.00015288,2]
[395233572,1764558642211,-150.0,0.00015288,2]
[395233573,1764558642221,-150.0,0.00015288,2]
[395233574,1764558642230,-150.0,0.00015288,2]
[395233575,1764558642240,-150.0,0.00015288,2]
[395233576,1764558642249,-153.63423822,0.00015288,2]
[395233577,1764558642259,-150.0,0.00015288,2]
[395233578,1764558642268,-150.0,0.00015288,2]
[395233579,1764558642277,-150.0,0.00015288,2]
[395233580,1764558642286,-150.0,0.00015288,2]
[395233581,1764558642295,-150.0,0.00015288,2]
[395233582,1764558642304,-150.0,0.00015288,2]
[395233583,1764558642313,-150.0,0.00015288,2]
[395233584,1764558642322,-153.63423822,0.00015305,2]
[395233585,1764558642332,-150.0,0.00015311,2]
[395233586,1764558642341,-150.0,0.00015312,2]
[395233587,1764558642350,-153.63423822,0.00015322,2]
[395233588,1764558642359,-2351.0,0.00015325,2]
[395233589,1764558642367,-150.0,0.00015325,2]
[395233590,1764558642376,-150.0,0.00015331,2]
[395233591,1764558642386,-150.0,0.00015335,2]
[395233592,1764558642395,-150.0,0.00015335,2]
[395233593,1764558642404,-150.0,0.00015336,2]
[395233594,1764558642413,-153.63423822,0.00015339,2]
[395233595,1764558642422,-150.0,0.00015342,2]
[395233596,1764558642431,-600.0,0.00015342,2]
[395233597,1764558642440,-153.63423822,0.00015356,2]
[395233598,1764558642449,-150.0,0.00015358,2]
[395233599,1764558642459,-150.0,0.00015359,2]
[395233600,1764558642468,-150.0,0.00015363,2]
[395233601,1764558642477,-150.0,0.00015373,2]
[395233602,1764558642486,-153.63423822,0.00015373,2]
[395233603,1764558642495,-150.0,0.00015375,2]
[395233604,1764558642504,-150.0,0.00015382,2]
[395233605,1764558642513,-150.0,0.00015382,2]
[395233606,1764558642522,-150.0,0.00015383,2]
[395233607,1764558642531,-153.63423822,0.00015391,2]
[395233608,1764558642540,-150.0,0.00015397,2]
[395233609,1764558642807,-150.0,0.00015401,2]
[395233610,1764558642817,-150.0,0.00015401,2]
[395233611,1764558642826,-150.0,0.00015406,2]
[395233612,1764558642835,-150.0,0.00015407,2]
[395233613,1764558642844,-153.63423822,0.00015408,2]
[395233614,1764558642853,-150.0,0.00015418,2]
[395233615,1764558642862,-153.63423822,0.00015425,2]
[395233616,1764558642872,-150.0,0.00015429,2]
[395233617,1764558642881,-150.0,0.00015429,2]
[395233618,1764558642891,-150.0,0.00015431,2]
[395233619,1764558642905,-150.0,0.00015439,2]
[395233620,1764558642914,-153.63423822,0.00015442,2]
[395233621,1764558642923,-150.0,0.00015452,2]
[395233622,1764558642932,-150.0,0.00015453,2]
[395233623,1764558642943,-150.0,0.00015455,2]
[395233624,1764558642952,-150.0,0.00015458,2]
[395233625,1764558642961,-153.63423822,0.00015459,2]
[395233627,1764558642973,-150.0,0.00015462,2]
[395233629,1764558642982,-1500.0,0.00015468,2]
[395233631,1764558642992,-1500.0,0.00015468,2]
[395233632,1764558643002,-1500.0,0.00015468,2]
[395233633,1764558643011,-501.12486699,0.00015468,2]
[395233636,1764558643021,-501.51277925,0.00015468,2]
[395233638,1764558643030,-1500.0,0.00015468,2]
[395233639,1764558643039,-150.0,0.00015476,2]
[395233640,1764558643048,-150.0,0.00015476,2]
[395233641,1764558643058,-150.0,0.00015476,2]
[395233642,1764558643068,-153.63423822,0.00015476,2]
[395233643,1764558643078,-150.0,0.00015476,2]
[395233644,1764558643088,-150.0,0.00015479,2]
[395233645,1764558643096,-153.63423822,0.00015494,2]
[395233646,1764558643106,-150.0,0.000155,2]
[395233647,1764558643116,-150.0,0.00015503,2]
[395233648,1764558643126,-150.0,0.00015505,2]
[395233649,1764558643135,-150.0,0.00015507,2]
[395233650,1764558643144,-153.63423822,0.00015511,2]
[395233651,1764558643153,-150.0,0.00015514,2]
[395233652,1764558643162,-150.0,0.00015514,2]
[395233653,1764558643172,-173.91709942,0.00015517,2]
[395233654,1764558643181,-150.0,0.00015524,2]
[395233655,1764558643191,-150.0,0.00015524,2]
[395233656,1764558643201,-150.0,0.00015527,2]
[395233658,1764558643211,-153.63423822,0.00015528,2]
[395233659,1764558643220,-150.0,0.00015542,2]
[395233660,1764558643230,-153.63423822,0.00015545,2]
[395233661,1764558643239,-215.61919432,0.00015545,2]
[395233662,1764558643248,-150.0,0.00015547,2]
[395233663,1764558643257,-150.0,0.00015549,2]
[395233664,1764558643266,-150.0,0.00015551,2]
[395233665,1764558643275,-150.0,0.00015552,2]
[395233666,1764558643284,-9716.64307427,0.00015555,2]
[395233667,1764558643293,-14213.15256226,0.00015555,2]
[395233668,1764558643302,-150.0,0.00015562,2]
[395233669,1764558643311,-153.63423822,0.00015562,2]
[395233670,1764558643320,-150.0,0.00015571,2]
[395233671,1764558643329,-150.0,0.00015571,2]
[395233672,1764558643338,-150.0,0.00015571,2]
[395233673,1764558643347,-150.0,0.00015571,2]
[395233674,1764558643356,-150.0,0.00015575,2]
[395233675,1764558643365,-153.63423822,0.00015579,2]
[395233676,1764558643374,-150.0,0.0001559,2]
[395233677,1764558643382,-150.0,0.00015593,2]
[395233678,1764558643391,-150.0,0.00015594,2]
[395233679,1764558643400,-153.63423822,0.00015597,2]
[395233680,1764558643409,-150.0,0.00015599,2]
[395233681,1764558643418,-218.59,0.0001561,2]
[395233682,1764558643427,-153.63423822,0.00015614,2]
[395233683,1764558643436,-150.0,0.00015616,2]
[395233684,1764558643445,-151.0,0.00015617,2]
[395233685,1764558643455,-150.0,0.00015618,2]
[395233686,1764558643464,-150.0,0.00015618,2]
[395233687,1764558643473,-150.0,0.00015623,2]
[395233688,1764558643482,-150.0,0.00015627,2]
[395233689,1764558643491,-150.0,0.00015627,2]
[395233690,1764558643500,-150.0,0.00015627,2]
[395233691,1764558643509,-153.63423822,0.00015631,2]
[395233692,1764558643518,-150.0,0.00015636,2]
[395233693,1764558643527,-150.0,0.00015642,2]
[395233694,1764558643535,-150.0,0.00015647,2]
[395233695,1764558643544,-153.63423822,0.00015648,2]
[395233696,1764558643553,-150.0,0.00015665,2]
[395233697,1764558643564,-150.0,0.00015665,2]
[395233698,1764558643573,-150.0,0.00015665,2]
[395233699,1764558643583,-153.63423822,0.00015665,2]
[395233700,1764558643592,-150.0,0.00015665,2]
[395233701,1764558643601,-150.0,0.0001567,2]
[395233702,1764558643611,-150.0,0.00015671,2]
[395233703,1764558643620,-150.0,0.0001568,2]
[395233704,1764558643629,-153.63423822,0.00015682,2]
[395233705,1764558643638,-150.0,0.00015689,2]
[395233706,1764558643647,-150.0,0.00015694,2]
[395233707,1764558643657,-207.4,0.00015697,2]
[395233708,1764558643667,-339.8450961,0.00015698,2]
[395233709,1764558643676,-153.63423822,0.00015699,2]
[395233710,1764558643685,-150.0,0.00015703,2]
[395233711,1764558643695,-150.0,0.00015712,2]
[395233712,1764558643705,-150.0,0.00015712,2]
[395233714,1764558643714,-150.0,0.00015712,2]
[395233716,1764558643723,-153.63423822,0.00015717,2]
[395233717,1764558643732,-150.0,0.00015718,2]
[395233718,1764558643741,-150.0,0.00015723,2]
[395233719,1764558643750,-150.0,0.00015726,2]
[395233720,1764558643759,-291.43,0.00015728,2]
[395233722,1764558643768,-153.63423822,0.00015734,2]
[395233723,1764558643777,-150.0,0.00015736,2]
[395233724,1764558643786,-150.0,0.00015741,2]
[395233725,1764558643795,-150.0,0.00015741,2]
[395233726,1764558643804,-150.0,0.00015742,2]
[395233727,1764558643814,-153.63423822,0.00015751,2]
[395233728,1764558643823,-150.0,0.0001576,2]
[395233729,1764558643832,-150.0,0.0001576,2]
[395233730,1764558643842,-150.0,0.00015766,2]
[395233731,1764558643853,-150.0,0.00015767,2]
[395233732,1764558643862,-153.63423822,0.00015768,2]
[395233733,1764558643871,-150.0,0.00015778,2]
[395233734,1764558643880,-150.0,0.00015781,2]
[395233735,1764558643890,-150.0,0.00015783,2]
[395233736,1764558643903,-153.63423822,0.00015785,2]
[395233737,1764558643911,-150.0,0.0001579,2]
[395233738,1764558643920,-150.0,0.00015797,2]
[395233739,1764558643930,-153.63423822,0.00015802,2]
[395233740,1764558643941,-150.0,0.00015807,2]
[395233741,1764558643951,-150.0,0.00015807,2]
[395233742,1764558643963,-150.0,0.0001581,2]
[395233743,1764558643974,-150.0,0.00015814,2]
[395233744,1764558643984,-150.0,0.00015816,2]
[395233745,1764558643994,-153.63423822,0.0001582,2]
[395233746,1764558644003,-218.59,0.0001582,2]
[395233747,1764558644012,-150.0,0.0001583,2]
[395233748,1764558644022,-150.0,0.00015836,2]
[395233749,1764558644031,-153.63423822,0.00015837,2]
[395233750,1764558644040,-150.0,0.00015838,2]
[395233751,1764558644050,-150.0,0.00015854,2]
[395233752,1764558644060,-150.0,0.00015854,2]
[395233753,1764558644069,-150.0,0.00015854,2]
[395233754,1764558644078,-150.0,0.00015854,2]
[395233755,1764558644088,-153.63423822,0.00015854,2]
[395233756,1764558644098,-150.0,0.00015854,2]
[395233757,1764558644107,-150.0,0.00015854,2]
[395233758,1764558644116,-150.0,0.00015854,2]
[395233759,1764558644126,-150.0,0.00015854,2]
[395233760,1764558644135,-150.0,0.00015854,2]
[395233761,1764558644144,-150.0,0.00015862,2]
[395233762,1764558644154,-153.63423822,0.00015871,2]
[395233763,1764558644163,-150.0,0.00015877,2]
[395233764,1764558644172,-150.0,0.00015882,2]
[395233765,1764558644182,-150.0,0.00015886,2]
[395233766,1764558644192,-153.63423822,0.00015888,2]
[395233767,1764558644201,-150.0,0.0001589,2]
[395233768,1764558644211,-600.0,0.0001589,2]
[395233769,1764558644220,-150.0,0.00015892,2]
[395233770,1764558644229,-150.0,0.00015897,2]
[395233771,1764558644238,-956.00669265,0.000159,2]
[395233772,1764558644247,-956.00669265,0.000159,2]
[395233773,1764558644256,-956.00669265,0.000159,2]
[395233774,1764558644265,-956.00669265,0.000159,2]
[395233775,1764558644274,-956.00669265,0.000159,2]
[395233776,1764558644283,-150.0,0.00015901,2]
[395233777,1764558644292,-150.0,0.00015901,2]
[395233778,1764558644302,-153.63423822,0.00015905,2]
[395233779,1764558644310,-150.0,0.0001591,2]
[395233780,1764558644320,-321.02517262,0.00015912,2]
[395233781,1764558644329,-153.63423822,0.00015923,2]
[395233782,1764558644338,-150.0,0.00015925,2]
[395233783,1764558644347,-150.0,0.00015929,2]
[395233784,1764558644356,-150.0,0.00015934,2]
[395233785,1764558644366,-153.63423822,0.0001594,2]
[395233786,1764558644375,-150.0,0.00015941,2]
[395233787,1764558644385,-150.0,0.00015945,2]
[395233788,1764558644393,-150.0,0.00015948,2]
[395233789,1764558644402,-150.0,0.00015948,2]
[395233790,1764558644412,-153.63423822,0.00015957,2]
[395233791,1764558644421,-150.0,0.00015958,2]
[395233792,1764558644431,-150.0,0.00015967,2]
[395233793,1764558644439,-150.0,0.00015967,2]
[395233794,1764558644449,-150.0,0.00015967,2]
[395233795,1764558644458,-150.0,0.00015972,2]
[395233796,1764558644467,-153.63423822,0.00015974,2]
[395233797,1764558644477,-150.0,0.00015981,2]
[395233798,1764558644486,-150.0,0.00015985,2]
[395233799,1764558644495,-153.63423822,0.00015991,2]
[395233800,1764558644505,-150.0,0.00015995,2]
[395233801,1764558644513,-150.0,0.00015995,2]
[395233802,1764558644522,-150.0,0.00016,2]
[395233803,1764558644531,-2000.0,0.00016,2]
[395233804,1764558644541,-9716.64307427,0.00016004,2]
[395233805,1764558644550,-14213.15256226,0.00016004,2]
[395233806,1764558644560,-150.0,0.00016005,2]
[395233807,1764558644570,-150.0,0.00016005,2]
[395233808,1764558644579,-153.63423822,0.00016008,2]
[395233809,1764558644589,-1000.0,0.00016016,2]
[395233810,1764558644598,-505.67913008,0.00016016,2]
[395233811,1764558644609,-500.0,0.00016016,2]
[395233812,1764558644618,-2000.0,0.00016016,2]
[395233813,1764558644627,-150.0,0.00016019,2]
[395233814,1764558644637,-153.63423822,0.00016025,2]
[395233815,1764558644645,-150.0,0.00016028,2]
[395233816,1764558644654,-150.0,0.00016029,2]
[395233817,1764558644663,-150.0,0.00016043,2]
[395233818,1764558644672,-150.0,0.00016043,2]
[395233819,1764558644681,-150.0,0.00016043,2]
[395233820,1764558644690,-153.63423822,0.00016043,2]
[395233821,1764558644699,-150.0,0.00016043,2]
[395233822,1764558644708,-15123.82076573,0.00016048,2]
[395233823,1764558644717,-150.0,0.00016052,2]
[395233824,1764558644726,-150.0,0.00016053,2]
[395233825,1764558644735,-150.0,0.00016055,2]
[395233826,1764558644743,-153.63423822,0.0001606,2]
[395233827,1764558644752,-150.0,0.00016066,2]
[395233828,1764558644761,-150.0,0.00016072,2]
[395233829,1764558644770,-153.63423822,0.00016077,2]
[395233830,1764558644779,-150.0,0.00016077,2]
[395233831,1764558644788,-197.83401754,0.00016079,2]
[395233832,1764558644797,-150.0,0.0001608,2]
[395233833,1764558644812,-150.0,0.0001608,2]
[395233834,1764558644824,-150.0,0.0001609,2]
[395233835,1764558644833,-150.0,0.0001609,2]
[395233836,1764558644843,-153.63423822,0.00016094,2]
[395233837,1764558644852,-150.0,0.00016101,2]
[395233838,1764558644861,-150.0,0.0001611,2]
[395233839,1764558644871,-153.63423822,0.00016111,2]
[395233840,1764558644880,-150.0,0.00016113,2]
[395233841,1764558644891,-150.0,0.00016115,2]
[395233842,1764558644900,-9999.99,0.00016116,2]
[395233843,1764558644913,-150.0,0.00016118,2]
[395233844,1764558644922,-150.0,0.00016125,2]
[395233845,1764558644931,-153.63423822,0.00016128,2]
[395233846,1764558644942,-150.0,0.00016137,2]
[395233847,1764558644951,-150.0,0.00016137,2]
[395233848,1764558644962,-150.0,0.00016137,2]
[395233849,1764558644971,-150.0,0.00016137,2]
[395233850,1764558644981,-150.0,0.00016137,2]
[395233851,1764558644992,-150.0,0.00016137,2]
[395233852,1764558645001,-153.63423822,0.00016146,2]
[395233853,1764558645010,-578.20924308,0.00016149,2]
[395233854,1764558645020,-500.0,0.00016149,2]
[395233855,1764558645029,-250.0,0.00016149,2]
[395233856,1764558645039,-500.0,0.00016149,2]
[395233857,1764558645047,-358.32829599,0.00016149,2]
[395233858,1764558645056,-250.0,0.00016149,2]
[395233859,1764558645066,-500.0,0.00016149,2]
[395233860,1764558645075,-250.0,0.00016149,2]
[395233861,1764558645084,-500.0,0.00016149,2]
[395233862,1764558645093,-250.0,0.00016149,2]
[395233863,1764558645102,-500.0,0.00016149,2]
[395233864,1764558645111,-250.0,0.00016149,2]
[395233865,1764558645120,-250.0,0.00016149,2]
[395233866,1764558645129,-500.0,0.00016149,2]
[395233867,1764558645138,-250.0,0.00016149,2]
[395233868,1764558645148,-500.0,0.00016149,2]
[395233869,1764558645158,-250.0,0.00016149,2]
[395233870,1764558645167,-500.0,0.00016149,2]
[395233871,1764558645177,-250.0,0.00016149,2]
[395233872,1764558645186,-500.0,0.00016149,2]
[395233873,1764558645195,-250.0,0.00016149,2]
[395233874,1764558645208,-500.0,0.00016149,2]
[395233875,1764558645217,-250.0,0.00016149,2]
[395233876,1764558645227,-500.0,0.00016149,2]
[395233877,1764558645235,-5476.15946739,0.00016149,2]
[395233878,1764558645245,-250.0,0.00016149,2]
[395233879,1764558645254,-500.0,0.00016149,2]
[395233880,1764558645264,-250.0,0.00016149,2]
[395233881,1764558645273,-500.0,0.00016149,2]
[395233882,1764558645283,-533.88981491,0.00016149,2]
[395233883,1764558645292,-151.0,0.00016149,2]
[395233884,1764558645302,-936.93286639,0.00016149,2]
[395233885,1764558645312,-151.0,0.00016149,2]
[395233886,1764558645321,-151.0,0.00016149,2]
[395233887,1764558645330,-322.6107,0.00016149,2]
[395233888,1764558645340,-151.0,0.00016149,2]
[395233889,1764558645350,-151.0,0.00016149,2]
[395233890,1764558645359,-151.0,0.00016149,2]
[395233891,1764558645368,-500.0,0.00016149,2]
[395233892,1764558645377,-151.0,0.00016149,2]
[395233893,1764558645386,-500.0,0.00016149,2]
[395233894,1764558645395,-151.0,0.00016149,2]
[395233895,1764558645405,-160.0,0.00016149,2]
[395233896,1764558645414,-500.0,0.00016149,2]
[395233897,1764558645423,-151.0,0.00016149,2]
[395233898,1764558645433,-250.0,0.00016149,2]
[395233899,1764558645443,-500.0,0.00016149,2]
[395233900,1764558645452,-151.0,0.00016149,2]
[395233901,1764558645461,-250.0,0.00016149,2]
[395233902,1764558645471,-500.0,0.00016149,2]
[395233903,1764558645484,-250.0,0.00016149,2]
[395233904,1764558645493,-151.0,0.00016149,2]
[395233905,1764558645502,-194.72792766,0.00016149,2]
[395233906,1764558645511,-250.0,0.00016149,2]
[395233907,1764558645521,-151.0,0.00016149,2]
[395233908,1764558645530,-500.0,0.00016149,2]
[395233909,1764558645539,-250.0,0.00016149,2]
[395233910,1764558645548,-151.0,0.00016149,2]
[395233911,1764558645557,-500.0,0.00016149,2]
[395233912,1764558645567,-250.0,0.00016149,2]
[395233913,1764558645577,-151.0,0.00016149,2]
[395233914,1764558645588,-500.0,0.00016149,2]
[395233915,1764558645599,-151.0,0.00016149,2]
[395233916,1764558645609,-500.0,0.00016149,2]
[395233917,1764558645622,-250.0,0.00016149,2]
[395233918,1764558645631,-151.0,0.00016149,2]
[395233919,1764558645641,-500.0,0.00016149,2]
[395233920,1764558645651,-151.0,0.00016149,2]
[395233921,1764558645661,-250.0,0.00016149,2]
[395233922,1764558645671,-500.0,0.00016149,2]
[395233923,1764558645680,-250.0,0.00016149,2]
[395233924,1764558645690,-151.0,0.00016149,2]
[395233925,1764558645701,-500.0,0.00016149,2]
[395233926,1764558645712,-151.0,0.00016149,2]
[395233927,1764558645722,-250.0,0.00016149,2]
[395233928,1764558645732,-500.0,0.00016149,2]
[395233929,1764558645741,-620.0,0.00016149,2]
[395233930,1764558645750,-151.0,0.00016149,2]
[395233931,1764558645761,-250.0,0.00016149,2]
[395233932,1764558645770,-151.0,0.00016149,2]
[395233933,1764558645780,-250.0,0.00016149,2]
[395233934,1764558645789,-151.0,0.00016149,2]
[395233935,1764558645798,-250.0,0.00016149,2]
[395233936,1764558645807,-151.0,0.00016149,2]
[395233937,1764558645817,-300.0,0.00016149,2]
[395233938,1764558645826,-3000.0,0.00016149,2]
[395233939,1764558645836,-151.0,0.00016149,2]
[395233940,1764558645845,-151.0,0.00016149,2]
[395233941,1764558645855,-151.0,0.00016149,2]
[395233942,1764558645864,-151.0,0.00016149,2]
[395233943,1764558645873,-151.0,0.00016149,2]
[395233944,1764558645882,-500.0,0.00016149,2]
[395233945,1764558645891,-500.0,0.00016149,2]
[395233946,1764558645905,-500.0,0.00016149,2]
[395233947,1764558645914,-500.0,0.00016149,2]
[395233948,1764558645923,-500.0,0.00016149,2]
[395233949,1764558645932,-500.0,0.00016149,2]
[395233951,1764558645942,-500.0,0.00016149,2]
[395233952,1764558645951,-500.0,0.00016149,2]
[395233953,1764558645961,-500.0,0.00016149,2]
[395233955,1764558645971,-151.0,0.00016149,2]
[395233957,1764558645982,-500.0,0.00016149,2]
[395233959,1764558645992,-500.0,0.00016149,2]
[395233960,1764558646001,-500.0,0.00016149,2]
[395233961,1764558646011,-500.0,0.00016149,2]
[395233962,1764558646021,-1000.0,0.00016149,2]
[395233963,1764558646030,-1000.0,0.00016149,2]
[395233964,1764558646040,-1000.0,0.00016149,2]
[395233965,1764558646050,-1000.0,0.00016149,2]
[395233966,1764558646060,-1000.0,0.00016149,2]
[395233967,1764558646070,-1000.0,0.00016149,2]
[395233969,1764558646080,-1000.0,0.00016149,2]
[395233970,1764558646089,-1000.0,0.00016149,2]
[395233971,1764558646100,-1000.0,0.00016149,2]
[395233972,1764558646109,-1000.0,0.00016149,2]
[395233973,1764558646119,-1000.0,0.00016149,2]
[395233974,1764558646128,-1000.0,0.00016149,2]
[395233975,1764558646138,-257.91778498,0.00016149,2]
[395233976,1764558646147,-1000.0,0.00016149,2]
[395233977,1764558646157,-1000.0,0.00016149,2]
[395233978,1764558646166,-1000.0,0.00016149,2]
[395233979,1764558646176,-1000.0,0.00016149,2]
[395233980,1764558646186,-1000.0,0.00016149,2]
[395233981,1764558646195,-151.0,0.00016149,2]
[395233982,1764558646206,-1000.0,0.00016149,2]
[395233983,1764558646221,-1000.0,0.00016149,2]
[395233984,1764558646230,-1000.0,0.00016149,2]
[395233985,1764558646240,-1000.0,0.00016149,2]
[395233986,1764558646249,-1000.0,0.00016149,2]
[395233987,1764558646259,-1000.0,0.00016149,2]
[395233988,1764558646268,-194.72792766,0.00016149,2]
[395233989,1764558646278,-1000.0,0.00016149,2]
[395233990,1764558646287,-1000.0,0.00016149,2]
[395233991,1764558646296,-1000.0,0.00016149,2]
[395233992,1764558646306,-250.0,0.00016149,2]
[395233993,1764558646315,-250.0,0.00016149,2]
[395233994,1764558646324,-250.0,0.00016149,2]
[395233995,1764558646333,-250.0,0.00016149,2]
[395233996,1764558646343,-250.0,0.00016149,2]
[395233997,1764558646351,-250.0,0.00016149,2]
[395233998,1764558646360,-250.0,0.00016149,2]
[395233999,1764558646369,-250.0,0.00016149,2]
[395234000,1764558646381,-250.0,0.00016149,2]
[395234001,1764558646391,-250.0,0.00016149,2]
[395234002,1764558646400,-250.0,0.00016149,2]
[395234003,1764558646409,-250.0,0.00016149,2]
[395234004,1764558646418,-250.0,0.00016149,2]
[395234005,1764558646428,-150.0,0.00016149,2]
[395234006,1764558646437,-226.43577512,0.0001615,2]
[395234007,1764558646446,-2092.314224,0.0001615,2]
[395234008,1764558646456,-150.0,0.00016156,2]
[395234009,1764558646465,-150.0,0.00016159,2]
[395234010,1764558646474,-150.0,0.00016161,2]
[395234011,1764558646484,-153.63423822,0.00016163,2]
[395234012,1764558646494,-150.0,0.00016164,2]
[395234013,1764558646503,-151.0,0.00016165,2]
[395234014,1764558646512,-150.0,0.00016173,2]
[395234015,1764558646521,-153.63423822,0.0001618,2]
[395234016,1764558646531,-150.0,0.00016184,2]
[395234017,1764558646540,-150.0,0.00016184,2]
[395234018,1764558646549,-150.0,0.00016194,2]
[395234019,1764558646558,-150.0,0.00016194,2]
[395234020,1764558646568,-150.0,0.00016197,2]
[395234021,1764558646579,-153.63423822,0.00016197,2]
[395234022,1764558646588,-150.0,0.00016202,2]
[395234023,1764558646598,-150.0,0.00016208,2]
[395234024,1764558646607,-153.63423822,0.00016214,2]
[395234025,1764558646616,-150.0,0.00016219,2]
[395234026,1764558646625,-150.0,0.00016221,2]
[395234027,1764558646635,-150.0,0.00016222,2]
[395234028,1764558646644,-11342.96089445,0.00016223,2]
[395234029,1764558646654,-150.0,0.00016231,2]
[395234030,1764558646663,-150.0,0.00016231,2]
[395234031,1764558646672,-150.0,0.00016231,2]
[395234032,1764558646681,-153.63423822,0.00016231,2]
[395234033,1764558646690,-150.0,0.00016231,2]
[395234034,1764558646700,-150.0,0.00016245,2]
[395234035,1764558646710,-150.0,0.00016246,2]
[395234036,1764558646719,-153.63423822,0.00016249,2]
[395234037,1764558646728,-150.0,0.00016255,2]
[395234038,1764558646975,-153.63423822,0.00016266,2]
[395234039,1764558646985,-150.0,0.00016269,2]
[395234040,1764558646994,-150.0,0.00016269,2]
[395234041,1764558647005,-150.0,0.00016274,2]
[395234042,1764558647014,-150.0,0.00016279,2]
[395234043,1764558647023,-150.0,0.00016279,2]
[395234044,1764558647033,-153.63423822,0.00016283,2]
[395234045,1764558647043,-150.0,0.00016289,2]
[395234046,1764558647052,-150.0,0.00016292,2]
[395234047,1764558647061,-153.63423822,0.000163,2]
[395234048,1764558647071,-150.0,0.00016302,2]
[395234049,1764558647081,-150.0,0.00016307,2]
[395234050,1764558647091,-150.0,0.00016307,2]
[395234051,1764558647100,-150.0,0.00016307,2]
[395234052,1764558647110,-890.0,0.00016316,2]
[395234053,1764558647119,-150.0,0.00016316,2]
[395234054,1764558647129,-153.63423822,0.00016317,2]
[395234055,1764558647139,-150.0,0.00016326,2]
[395234056,1764558647149,-150.0,0.00016326,2]
[395234057,1764558647158,-150.0,0.00016329,2]
[395234058,1764558647168,-150.0,0.00016333,2]
[395234059,1764558647177,-153.63423822,0.00016334,2]
[395234060,1764558647187,-890.0,0.00016337,2]
[395234061,1764558647196,-150.0,0.0001634,2]
[395234062,1764558647207,-150.0,0.00016345,2]
[395234063,1764558647217,-150.0,0.00016349,2]
[395234064,1764558647226,-736.0,0.00016351,2]
[395234065,1764558647237,-153.63423822,0.00016351,2]
[395234066,1764558647251,-150.0,0.00016364,2]
[395234067,1764558647261,-153.63423822,0.00016369,2]
[395234068,1764558647270,-150.0,0.00016373,2]
[395234069,1764558647279,-150.0,0.00016373,2]
[395234070,1764558647289,-150.0,0.00016377,2]
[395234071,1764558647298,-150.0,0.00016382,2]
[395234072,1764558647307,-150.0,0.00016384,2]
[395234073,1764558647317,-153.63423822,0.00016386,2]
[395234074,1764558647326,-150.0,0.00016388,2]
[395234075,1764558647336,-890.0,0.00016391,2]
[395234076,1764558647345,-150.0,0.00016392,2]
[395234077,1764558647354,-150.0,0.00016396,2]
[395234078,1764558647363,-604.07312412,0.00016402,2]
[395234079,1764558647373,-153.63423822,0.00016403,2]
[395234080,1764558647382,-150.0,0.00016412,2]
[395234081,1764558647391,-890.0,0.00016415,2]
[395234082,1764558647401,-150.0,0.0001642,2]
[395234083,1764558647411,-150.0,0.0001642,2]
[395234084,1764558647420,-150.0,0.0001642,2]